fUSD/lending_fUSD_20260126
["ID","MTS","AMOUNT","RATE_DAILY","PERIOD"]
[403607096,1769417445599,-298.9,0.00017644,2]
[403607097,1769417445609,-181.08010149,0.00017647,2]
[403607098,1769417445619,-885.86649465,0.00017647,2]
[403607099,1769417445629,-151.0,0.00017647,2]
[403607100,1769417445638,-1000.0,0.00017654,2]
[403607101,1769417445648,-182.0,0.0001768,2]
[403607102,1769417445657,-826.0,0.0001768,2]
[403607103,1769417445667,-1086.0,0.0001768,2]
[403607104,1769417445676,-1086.0,0.0001768,2]
[403607105,1769417445686,-346.0,0.00017691,2]
[403607106,1769417445696,-346.0,0.00017696,2]
[403607107,1769417445705,-346.0,0.00017708,2]
[403607108,1769417445715,-1000.0,0.00017709,2]
[403607109,1769417445724,-1000.0,0.00017711,2]
[403607110,1769417445734,-346.0,0.00017723,2]
[403607111,1769417445743,-25000.0,0.00017724,3]
[403607112,1769417445752,-502.02909316,0.0001773,2]
[403607113,1769417445761,-25000.0,0.00017733,3]
[403607114,1769417445770,-25000.0,0.00017742,3]
[403607115,1769417445779,-25000.0,0.0001775,3]
[403607116,1769417445789,-12566.0,0.00017755,2]
[403607117,1769417445798,-25000.0,0.00017759,3]
[403607118,1769417445808,-298.9,0.00017763,2]
[403607119,1769417445817,-177.34,0.00017763,2]
[403607120,1769417445827,-346.0,0.00017765,2]
[403607121,1769417445838,-5758.0,0.00017765,2]
[403607122,1769417445849,-25000.0,0.00017768,3]
[403607123,1769417445859,-25000.0,0.00017777,3]
[403607124,1769417445870,-1273.23,0.00017785,2]
[403607125,1769417445879,-25000.0,0.00017786,3]
[403607126,1769417445890,-187.04623115,0.00017792,2]
[403607127,1769417445900,-25000.0,0.00017794,3]
[403607128,1769417445910,-1008.0,0.000178,5]
[403607129,1769417445925,-1007.8,0.000178,7]
[403607130,1769417445934,-150.0,0.000178,2]
[403607131,1769417445944,-25000.0,0.00017803,3]
[403607132,1769417445955,-500.0,0.00017808,2]
[403607133,1769417445964,-1000.0,0.00017808,2]
[403607134,1769417445974,-1000.0,0.0001781,2]
[403607135,1769417445984,-25000.0,0.00017812,3]
[403607136,1769417445993,-502.02909315,0.00017815,2]
[403607137,1769417446003,-8081.75591382,0.0001782,2]
[403607138,1769417446012,-2000.0,0.0001782,2]
[403607139,1769417446021,-2000.0,0.0001782,2]
[403607140,1769417446031,-2000.0,0.0001782,2]
[403607141,1769417446040,-2000.0,0.0001782,2]
[403607142,1769417446050,-2602.30488931,0.0001782,2]
[403607143,1769417446060,-25000.0,0.00017821,3]
[403607144,1769417446069,-25000.0,0.0001783,3]
[403607145,1769417446079,-6719.06641575,0.0001783,2]
[403607146,1769417446088,-25000.0,0.00017838,3]
[403607147,1769417446098,-25000.0,0.00017847,3]
[403607148,1769417446107,-346.0,0.00017853,2]
[403607149,1769417446118,-964.69647427,0.00017854,2]
[403607150,1769417446127,-1701.83892974,0.00017854,2]
[403607151,1769417446137,-2545.8492586,0.00017854,2]
[403607152,1769417446147,-3444.6159,0.00017854,2]
[403607153,1769417446156,-200.0,0.00017855,2]
[403607154,1769417446166,-500.0,0.00017855,2]
[403607155,1769417446175,-500.0,0.00017855,2]
[403607156,1769417446185,-500.0,0.00017855,2]
[403607157,1769417446195,-1273.23,0.00017855,2]
[403607158,1769417446205,-200.0,0.00017856,2]
[403607159,1769417446215,-200.0,0.00017856,2]
[403607160,1769417446224,-200.0,0.00017856,2]
[403607161,1769417446234,-25000.0,0.00017856,3]
[403607162,1769417446244,-164.78,0.00017858,2]
[403607163,1769417446255,-500.0,0.00017863,2]
[403607164,1769417446268,-1198.0,0.00017863,2]
[403607165,1769417446279,-25000.0,0.00017865,3]
[403607166,1769417446289,-25000.0,0.00017874,3]
[403607167,1769417446299,-560.38,0.00017874,2]
[403607168,1769417446309,-151.0,0.00017879,2]
[403607169,1769417446319,-298.9,0.00017881,2]
[403607170,1769417446329,-25000.0,0.00017882,3]
[403607171,1769417446339,-5800.0,0.00017883,2]
[403607172,1769417446348,-1000.0,0.00017887,2]
[403607173,1769417446358,-25000.0,0.00017891,3]
[403607174,1769417446367,-500.0,0.00017898,2]
[403607175,1769417446377,-500.0,0.00017898,2]
[403607176,1769417446387,-500.0,0.00017898,2]
[403607177,1769417446396,-500.0,0.00017898,2]
[403607178,1769417446406,-500.0,0.00017898,2]
[403607179,1769417446415,-500.0,0.00017898,2]
[403607180,1769417446425,-500.0,0.00017898,2]
[403607181,1769417446435,-500.0,0.00017898,2]
[403607182,1769417446445,-500.0,0.00017898,2]
[403607183,1769417446455,-500.0,0.00017898,2]
[403607184,1769417446464,-500.0,0.00017898,2]
[403607185,1769417446474,-500.0,0.00017898,2]
[403607186,1769417446484,-500.0,0.00017898,2]
[403607187,1769417446493,-500.0,0.00017898,2]
[403607188,1769417446503,-500.0,0.00017898,2]
[403607189,1769417446512,-500.0,0.00017898,2]
[403607190,1769417446522,-500.0,0.00017898,2]
[403607191,1769417446532,-500.0,0.00017898,2]
[403607192,1769417446541,-500.0,0.00017898,2]
[403607193,1769417446551,-500.0,0.00017898,2]
[403607194,1769417446560,-500.0,0.00017898,2]
[403607195,1769417446570,-514.94989564,0.00017898,2]
[403607196,1769417446579,-500.0,0.00017898,2]
[403607197,1769417446588,-500.0,0.00017898,2]
[403607198,1769417446597,-500.0,0.00017898,2]
[403607199,1769417446607,-518.00376401,0.00017898,2]
[403607200,1769417446616,-168.41592957,0.000179,2]
[403607201,1769417446626,-5408.0168,0.000179,2]
[403607202,1769417446635,-25000.0,0.000179,3]
[403607203,1769417446645,-5800.0,0.000179,2]
[403607204,1769417446656,-502.02909315,0.000179,2]
[403607205,1769417446666,-155.97251724,0.000179,2]
[403607206,1769417446676,-155.97251722,0.000179,2]
[403607207,1769417446686,-155.97251722,0.000179,2]
[403607208,1769417446695,-155.97251722,0.000179,2]
[403607209,1769417446707,-155.97251722,0.000179,2]
[403607210,1769417446717,-155.97251722,0.000179,2]
[403607211,1769417446727,-15423.19860128,0.000179,2]
[403607212,1769417446736,-155.97251722,0.000179,2]
[403607214,1769417446746,-155.97251722,0.000179,2]
[403607215,1769417446756,-9586.0,0.000179,2]
[403607216,1769417446765,-208.92,0.00017917,2]
[403607217,1769417446775,-500.0,0.00017918,2]
[403607218,1769417446785,-12566.0,0.00017937,2]
[403607219,1769417446795,-172.2795408,0.00017941,3]
[403607220,1769417446805,-798.2174447,0.0001797,2]
[403607221,1769417446817,-400.0,0.0001797,2]
[403607222,1769417446826,-400.0,0.0001797,2]
[403607223,1769417446836,-400.0,0.0001797,2]
[403607224,1769417446850,-704.68300704,0.0001797,2]
[403607225,1769417446860,-500.0,0.00017972,2]
[403607226,1769417446869,-151.0,0.00017973,2]
[403607227,1769417446879,-151.0,0.00017973,2]
[403607228,1769417447119,-151.0,0.00017973,2]
[403607229,1769417447130,-151.0,0.00017973,2]
[403607230,1769417447140,-151.0,0.00017973,2]
[403607231,1769417447150,-151.0,0.00017973,2]
[403607232,1769417447160,-151.0,0.00017973,2]
[403607233,1769417447170,-151.0,0.00017973,2]
[403607234,1769417447179,-188.07834286,0.00017973,2]
[403607235,1769417447189,-6962.0,0.00017973,2]
[403607236,1769417447199,-150.0,0.00017973,2]
[403607237,1769417447208,-150.0,0.00017973,2]
[403607238,1769417447218,-588.82402791,0.00017979,2]
[403607239,1769417447228,-520.31,0.00017979,2]
[403607240,1769417447238,-500.0,0.00017979,2]
[403607241,1769417447248,-531.00846507,0.00017979,2]
[403607242,1769417447257,-500.0,0.00017979,2]
[403607243,1769417447267,-500.0,0.00017979,2]
[403607244,1769417447277,-1500.0,0.0001798,2]
[403607245,1769417447286,-1500.0,0.0001798,2]
[403607246,1769417447296,-301.03665033,0.0001798,2]
[403607247,1769417447306,-1500.0,0.0001798,2]
[403607248,1769417447315,-1500.0,0.0001798,2]
[403607249,1769417447325,-500.0,0.00017982,2]
[403607250,1769417447334,-600.0,0.00017983,2]
[403607251,1769417447344,-1000.0,0.00017986,2]
[403607252,1769417447353,-500.0,0.00017989,2]
[403607253,1769417447363,-500.0,0.00017989,2]
[403607254,1769417447372,-649.14983305,0.00017989,2]
[403607255,1769417447381,-514.56190828,0.0001799,2]
[403607256,1769417447390,-514.56190828,0.0001799,2]
[403607257,1769417447400,-1273.23,0.00017997,2]
[403607258,1769417447409,-214.75381521,0.00017997,2]
[403607259,1769417447418,-500.0,0.00017998,2]
[403607260,1769417447428,-246.63108745,0.00017998,2]
[403607261,1769417447437,-500.0,0.00017998,2]
[403607262,1769417447447,-500.0,0.00017998,2]
[403607263,1769417447456,-500.0,0.00017998,2]
[403607264,1769417447465,-500.0,0.00017998,2]
[403607265,1769417447474,-500.0,0.00017998,2]
[403607266,1769417447484,-3156.0024065,0.00017998,2]
[403607267,1769417447492,-183006.6104009,0.00017998,2]
[403607268,1769417447502,-2581.4272378,0.00017998,2]
[403607269,1769417447511,-246.13924238,0.00017999,2]
[403607270,1769417447520,-290.41219346,0.00017999,2]
[403607271,1769417447528,-287.69959162,0.00017999,2]
[403607272,1769417447538,-304.90720687,0.00017999,2]
[403607273,1769417447547,-331.89964967,0.00017999,2]
[403607274,1769417447557,-518.07460941,0.00017999,2]
[403607275,1769417447566,-676.91689947,0.00017999,2]
[403607276,1769417447576,-307.80574855,0.00017999,2]
[403607277,1769417447585,-348.46537928,0.00017999,2]
[403607278,1769417447594,-543.93267796,0.00017999,2]
[403607279,1769417447604,-520.31,0.00017999,2]
[403607280,1769417447613,-520.31,0.00017999,2]
[403607281,1769417447623,-520.31,0.00017999,2]
[403607282,1769417447632,-520.31,0.00017999,2]
[403607283,1769417447642,-520.31,0.00017999,2]
[403607284,1769417447652,-520.31,0.00017999,2]
[403607285,1769417447662,-520.31,0.00017999,2]
[403607286,1769417447671,-520.31,0.00017999,2]
[403607287,1769417447681,-520.31,0.00017999,2]
[403607288,1769417447691,-520.31,0.00017999,2]
[403607289,1769417447702,-520.31,0.00017999,2]
[403607290,1769417447711,-520.31,0.00017999,2]
[403607291,1769417447721,-520.31,0.00017999,2]
[403607292,1769417447731,-520.31,0.00017999,2]
[403607293,1769417447741,-520.31,0.00017999,2]
[403607294,1769417447751,-520.31,0.00017999,2]
[403607295,1769417447761,-520.31,0.00017999,2]
[403607296,1769417447772,-520.49,0.00017999,2]
[403607297,1769417447782,-408.98199245,0.00017999,2]
[403607298,1769417447791,-300.0,0.00017999,2]
[403607299,1769417447801,-300.0,0.00017999,2]
[403607300,1769417447811,-666.0,0.00017999,2]
[403607301,1769417447821,-1273.23,0.00017999,2]
[403607302,1769417447831,-1273.23,0.00017999,2]
[403607303,1769417447841,-1273.23,0.00017999,2]
[403607304,1769417447855,-1273.23,0.00017999,2]
[403607305,1769417447864,-1273.23,0.00017999,2]
[403607306,1769417447874,-1273.23,0.00017999,2]
[403607307,1769417447884,-1273.23,0.00017999,2]
[403607308,1769417447896,-1273.23,0.00017999,2]
[403607309,1769417447906,-1273.23,0.00017999,2]
[403607310,1769417447916,-1273.23,0.00017999,2]
[403607311,1769417447926,-1273.23,0.00017999,2]
[403607312,1769417447935,-1273.23,0.00017999,2]
[403607313,1769417447944,-1273.23,0.00017999,2]
[403607314,1769417447954,-1273.23,0.00017999,2]
[403607315,1769417447963,-1273.23,0.00017999,2]
[403607316,1769417447972,-300.0,0.00017999,2]
[403607317,1769417447982,-1273.33561324,0.00017999,2]
[403607318,1769417447991,-666.0,0.00017999,2]
[403607319,1769417448000,-300.0,0.00017999,2]
[403607320,1769417448010,-500.0,0.00017999,2]
[403607321,1769417448020,-500.0,0.00017999,2]
[403607322,1769417448029,-500.0,0.00017999,2]
[403607323,1769417448039,-500.0,0.00017999,2]
[403607324,1769417448049,-410.87321222,0.00017999,2]
[403607325,1769417448059,-1000.0,0.00018,2]
[403607326,1769417448068,-542.70304932,0.00018,2]
[403607327,1769417448083,-844016.58715547,0.00018,2]
[403607328,1769417448092,-2090841.91165617,0.00018,2]
[403607329,1769417448598,-41961.53265111,0.00018,2]
[403607330,1769417448694,-7554.15086149,0.00018,2]
[403607331,1769417449784,-765.18543228,0.00018,2]
[403607332,1769417450421,-647.22640714,0.00016281,2]
[403607333,1769417450432,-409.14193754,0.00016281,2]
[403607334,1769417450451,-2989.58603737,0.00016281,2]
[403607335,1769417450460,-4831.0,0.00017073,2]
[403607336,1769417450470,-3766.39488595,0.00017206,2]
[403607337,1769417450479,-1116.50563614,0.00018,2]
[403607353,1769417630995,-222.0,0.0004347,30]
[403607354,1769417631022,-222.0,0.0004347,120]
[403607355,1769417631047,-195.76353335,0.0004347,120]
[403607356,1769417631073,-267.51433633,0.0004347,30]
[403607357,1769417631099,-1487.0,0.0004347,30]
[403607358,1769417631124,-1487.0,0.0004347,120]
[403607359,1769417631152,-391.67412702,0.0004347,120]
[403607360,1769417631466,-210.0,0.0004347,30]
[403607361,1769417631528,-228.0,0.0004347,30]
[403607362,1769417631552,-758.70611016,0.0004347,30]
[403607363,1769417631577,-997.70095936,0.0004347,60]
[403607364,1769417631604,-800.0,0.0004347,31]
[403607365,1769417631629,-800.0,0.0004347,31]
[403607366,1769417631655,-800.0,0.0004347,31]
[403607367,1769417631680,-800.0,0.0004347,31]
[403607368,1769417631704,-800.0,0.0004347,31]
[403607369,1769417631729,-800.0,0.0004347,31]
[403607370,1769417631754,-800.0,0.0004347,31]
[403607371,1769417631779,-800.0,0.0004347,31]
[403607372,1769417631804,-800.0,0.0004347,31]
[403607373,1769417631830,-800.0,0.0004347,31]
[403607374,1769417631857,-800.0,0.0004347,31]
[403607375,1769417631882,-800.0,0.0004347,31]
[403607376,1769417631910,-800.0,0.0004347,31]
[403607377,1769417631936,-800.0,0.0004347,31]
[403607378,1769417631961,-800.0,0.0004347,31]
[403607379,1769417631991,-800.0,0.0004347,31]
[403607380,1769417632023,-800.0,0.0004347,31]
[403607381,1769417632049,-800.0,0.0004347,31]
[403607382,1769417632076,-800.0,0.0004347,31]
[403607383,1769417632104,-800.0,0.0004347,31]
[403607384,1769417632131,-800.0,0.0004347,31]
[403607385,1769417632158,-800.0,0.0004347,31]
[403607386,1769417632183,-800.0,0.0004347,31]
[403607387,1769417632209,-800.0,0.0004347,31]
[403607388,1769417632238,-800.0,0.0004347,31]
[403607389,1769417632265,-800.0,0.0004347,31]
[403607390,1769417632290,-800.0,0.0004347,31]
[403607391,1769417632316,-800.0,0.0004347,31]
[403607392,1769417632342,-800.0,0.0004347,31]
[403607393,1769417632372,-800.0,0.0004347,31]
[403607394,1769417632401,-800.0,0.0004347,31]
[403607395,1769417632428,-800.0,0.0004347,31]
[403607396,1769417632456,-800.0,0.0004347,31]
[403607397,1769417632480,-800.0,0.0004347,31]
[403607398,1769417632509,-800.0,0.0004347,31]
[403607399,1769417632543,-800.0,0.0004347,31]
[403607400,1769417632575,-800.0,0.0004347,31]
[403607401,1769417632604,-800.0,0.0004347,31]
[403607402,1769417632632,-800.0,0.0004347,31]
[403607403,1769417632659,-800.0,0.0004347,31]
[403607404,1769417632683,-800.0,0.0004347,31]
[403607405,1769417632709,-800.0,0.0004347,31]
[403607406,1769417632738,-800.0,0.0004347,31]
[403607407,1769417632765,-800.0,0.0004347,31]
[403607408,1769417632790,-800.0,0.0004347,31]
[403607409,1769417632814,-800.0,0.0004347,31]
[403607410,1769417632841,-800.0,0.0004347,31]
[403607411,1769417632886,-800.0,0.0004347,31]
[403607412,1769417632919,-800.0,0.0004347,31]
[403607413,1769417632946,-800.0,0.0004347,31]
[403607414,1769417632974,-800.0,0.0004347,31]
[403607415,1769417633002,-800.0,0.0004347,31]
[403607416,1769417633030,-800.0,0.0004347,31]
[403607417,1769417633056,-800.0,0.0004347,31]
[403607418,1769417633082,-800.0,0.0004347,31]
[403607419,1769417633110,-800.0,0.0004347,31]
[403607420,1769417633139,-800.0,0.0004347,31]
[403607421,1769417633168,-800.0,0.0004347,31]
[403607422,1769417633194,-800.0,0.0004347,31]
[403607423,1769417633223,-800.0,0.0004347,31]
[403607424,1769417633253,-800.0,0.0004347,31]
[403607425,1769417633282,-800.0,0.0004347,31]
[403607426,1769417633311,-800.0,0.0004347,31]
[403607427,1769417633338,-397.45752827,0.0004347,30]
[403607428,1769417633364,-1003.95086698,0.0004347,30]
[403607429,1769417633390,-172.81738598,0.0004347,120]
[403607430,1769417633415,-402.14156413,0.0004347,30]
[403607431,1769417633441,-420.58056579,0.0004347,120]
[403607432,1769417633466,-1556.21346389,0.0004347,120]
[403607433,1769417633492,-3212.50820922,0.0004347,120]
[403607434,1769417633518,-150.0,0.0004347,30]
[403607435,1769417633545,-5000.0,0.0004347,120]
[403607436,1769417633572,-1313.82319763,0.0004347,90]
[403607437,1769417633597,-529.79724539,0.0004347,120]
[403607438,1769417633624,-356.1884278,0.0004347,30]
[403607439,1769417633651,-543.22421159,0.0004347,30]
[403607440,1769417633676,-2999.999998,0.0004347,120]
[403607441,1769417633912,-406.15058775,0.0004347,30]
[403607442,1769417633939,-1217.70808941,0.0004347,120]
[403607443,1769417633966,-378.66480581,0.0004347,91]
[403607444,1769417633992,-551.85760069,0.0004347,60]
[403607445,1769417634019,-508.33135597,0.0004347,30]
[403607446,1769417634044,-187.72840139,0.0004347,120]
[403607447,1769417634070,-657.87779775,0.0004347,120]
[403607448,1769417634097,-1111.13699473,0.0004347,120]
[403607449,1769417634123,-675.90622898,0.0004347,30]
[403607450,1769417634148,-1109.6977835,0.0004347,30]
[403607451,1769417634175,-159.33813352,0.0004347,30]
[403607452,1769417634200,-1011.5684966,0.0004347,120]
[403607453,1769417634225,-3291.99026841,0.0004347,120]
[403607454,1769417634251,-312.31301744,0.0004347,120]
[403607455,1769417634277,-324.13247623,0.0004347,120]
[403607456,1769417634303,-552.61899948,0.0004347,30]
[403607457,1769417634327,-154.44327215,0.0004347,60]
[403607458,1769417634352,-1624.74035052,0.0004347,120]
[403607459,1769417634377,-234.87378838,0.0004347,30]
[403607460,1769417634401,-314.21298516,0.0004347,90]
[403607461,1769417634428,-759.56607258,0.0004347,120]
[403607462,1769417634455,-281.66778445,0.0004347,120]
[403607463,1769417634479,-221.4048739,0.0004347,30]
[403607464,1769417634507,-388.50290921,0.0004347,120]
[403607465,1769417634532,-691.88875504,0.0004347,120]
[403607466,1769417634556,-192.95616956,0.0004347,120]
[403607467,1769417634580,-449.32263831,0.0004347,120]
[403607468,1769417634603,-374.63200354,0.0004347,30]
[403607469,1769417634627,-501.44333199,0.0004347,120]
[403607470,1769417634652,-266.28566361,0.0004347,30]
[403607471,1769417634676,-985.44119134,0.0004347,120]
[403607472,1769417634701,-441.7309091,0.0004347,120]
[403607473,1769417634726,-500.0,0.0004347,120]
[403607474,1769417634750,-509.23115109,0.0004347,120]
[403607475,1769417634776,-500.0,0.0004347,120]
[403607476,1769417634802,-500.0,0.0004347,120]
[403607477,1769417634827,-500.0,0.0004347,120]
[403607478,1769417634851,-500.0,0.0004347,120]
[403607479,1769417634876,-500.0,0.0004347,120]
[403607480,1769417634904,-500.0,0.0004347,120]
[403607481,1769417634929,-500.0,0.0004347,120]
[403607482,1769417634959,-500.0,0.0004347,120]
[403607483,1769417634985,-500.0,0.0004347,120]
[403607484,1769417635010,-500.0,0.0004347,120]
[403607485,1769417635035,-1309.79554807,0.0004347,120]
[403607486,1769417635059,-500.0,0.0004347,120]
[403607487,1769417635084,-500.0,0.0004347,120]
[403607488,1769417635109,-500.0,0.0004347,120]
[403607489,1769417635133,-413.27394011,0.0004347,120]
[403607490,1769417635158,-500.0,0.0004347,120]
[403607491,1769417635184,-500.0,0.0004347,120]
[403607492,1769417635210,-500.0,0.0004347,120]
[403607493,1769417635235,-500.0,0.0004347,120]
[403607494,1769417635260,-500.0,0.0004347,120]
[403607495,1769417635285,-500.0,0.0004347,120]
[403607496,1769417635311,-500.0,0.0004347,120]
[403607497,1769417635335,-500.0,0.0004347,120]
[403607498,1769417635361,-500.0,0.0004347,120]
[403607499,1769417635385,-437.66693187,0.0004347,120]
[403607500,1769417635409,-242.43558588,0.0004347,30]
[403607501,1769417635434,-560.50668018,0.0004347,30]
[403607502,1769417635459,-245.98375537,0.0004347,120]
[403607503,1769417635484,-153.57614079,0.0004347,120]
[403607504,1769417635508,-321.47796984,0.0004347,120]
[403607505,1769417635534,-501.22371762,0.0004347,120]
[403607506,1769417635560,-696.34255276,0.0004347,120]
[403607507,1769417635585,-175.43428971,0.0004347,120]
[403607508,1769417635610,-381.73747377,0.0004347,120]
[403607509,1769417635636,-270.6983023,0.0004347,120]
[403607510,1769417635662,-271.28665745,0.0004347,30]
[403607511,1769417635687,-3513.95116566,0.0004347,30]
[403607512,1769417635713,-427.00458648,0.0004347,120]
[403607513,1769417635739,-3116.1851936,0.0004347,120]
[403607514,1769417635764,-265.13182437,0.0004347,120]
[403607515,1769417635790,-282.66477761,0.0004347,30]
[403607516,1769417635815,-197.50000394,0.0004347,120]
[403607517,1769417635841,-414.79070654,0.0004347,120]
[403607518,1769417635867,-380.37025688,0.0004347,30]
[403607519,1769417635894,-348.88367707,0.0004347,30]
[403607520,1769417635920,-500.0,0.0004347,120]
[403607521,1769417636121,-157.86350958,0.0004347,120]
[403607522,1769417636151,-267.81623008,0.0004347,120]
[403607523,1769417636179,-311.85035691,0.0004347,120]
[403607524,1769417636206,-272.03817841,0.0004347,120]
[403607525,1769417636234,-326.99473689,0.0004347,120]
[403607526,1769417636260,-345.22901055,0.0004347,30]
[403607527,1769417636285,-275.05377523,0.0004347,120]
[403607528,1769417636310,-1445.42662864,0.0004347,120]
[403607529,1769417636336,-284.13594279,0.0004347,30]
[403607530,1769417636360,-176.68054112,0.0004347,30]
[403607531,1769417636384,-160.43378083,0.0004347,30]
[403607532,1769417636410,-2355.73715474,0.0004347,120]
[403607533,1769417636435,-2104.01542581,0.0004347,120]
[403607534,1769417636461,-163.38944158,0.0004347,120]
[403607535,1769417636486,-794.04195112,0.0004347,30]
[403607536,1769417636511,-245.93159076,0.0004347,30]
[403607537,1769417636536,-1889.91786079,0.0004347,30]
[403607538,1769417636561,-944.10409321,0.0004347,120]
[403607539,1769417636586,-788.1179676,0.0004347,30]
[403607540,1769417636610,-176.00275275,0.0004347,120]
[403607541,1769417636636,-315.81244,0.0004347,30]
[403607542,1769417636660,-691.62051905,0.0004347,90]
[403607543,1769417636687,-177.33324683,0.0004347,120]
[403607544,1769417636712,-350.96942719,0.0004347,120]
[403607545,1769417636736,-518.34244034,0.0004347,120]
[403607546,1769417636761,-180.9781971,0.0004347,120]
[403607547,1769417636785,-568.67816077,0.0004347,120]
[403607548,1769417636809,-553.21802557,0.0004347,120]
[403607549,1769417636834,-547.27338995,0.0004347,120]
[403607550,1769417636858,-260.03180646,0.0004347,120]
[403607551,1769417636882,-308.35890712,0.0004347,30]
[403607552,1769417636911,-251.10630657,0.0004347,30]
[403607553,1769417636938,-572.7012333,0.0004347,120]
[403607554,1769417636966,-1268.69450961,0.0004347,56]
[403607555,1769417636991,-320.52299545,0.0004347,120]
[403607556,1769417637016,-999.68466027,0.0004347,30]
[403607557,1769417637043,-2059.13849646,0.0004347,30]
[403607558,1769417637068,-197.14889325,0.0004347,120]
[403607559,1769417637093,-805.50258369,0.0004347,30]
[403607560,1769417637118,-691.07586754,0.0004347,30]
[403607561,1769417637142,-275.06569059,0.0004347,120]
[403607562,1769417637167,-1796.81849169,0.0004347,30]
[403607563,1769417637192,-482.9597804,0.0004347,60]
[403607564,1769417637219,-560.84926521,0.0004347,120]
[403607565,1769417637246,-259.78628194,0.0004347,120]
[403607566,1769417637271,-403.51900981,0.0004347,30]
[403607567,1769417637296,-478.8484538,0.0004347,120]
[403607568,1769417637320,-437.91640954,0.0004347,120]
[403607569,1769417637344,-500.0,0.0004347,120]
[403607570,1769417637369,-1181.87034562,0.0004347,90]
[403607571,1769417637393,-495.02946904,0.0004347,30]
[403607572,1769417637418,-185.50832934,0.0004347,30]
[403607573,1769417637443,-2439.82304822,0.0004347,30]
[403607574,1769417637468,-686.03590289,0.0004347,120]
[403607575,1769417637492,-272.49016963,0.0004347,120]
[403607576,1769417637517,-805.93498915,0.0004347,30]
[403607577,1769417637542,-335.558437,0.0004347,120]
[403607578,1769417637568,-585.60698536,0.0004347,30]
[403607579,1769417637592,-179.27764203,0.0004347,120]
[403607580,1769417637617,-457.37858056,0.0004347,120]
[403607581,1769417637642,-482.53922774,0.0004347,120]
[403607582,1769417637668,-2005.83,0.0004347,120]
[403607583,1769417637692,-6160.63570387,0.0004347,31]
[403607584,1769417637717,-4291.0606659,0.0004347,120]
[403607585,1769417637742,-500.0,0.0004347,120]
[403607586,1769417637766,-500.0,0.0004347,120]
[403607587,1769417637790,-500.0,0.0004347,120]
[403607588,1769417637817,-500.0,0.0004347,120]
[403607589,1769417637842,-500.0,0.0004347,120]
[403607590,1769417637868,-500.0,0.0004347,120]
[403607591,1769417637895,-500.0,0.0004347,120]
[403607592,1769417637922,-500.0,0.0004347,120]
[403607593,1769417637949,-500.0,0.0004347,120]
[403607594,1769417637977,-500.0,0.0004347,120]
[403607595,1769417638002,-500.0,0.0004347,120]
[403607596,1769417638027,-632.93238,0.0004347,120]
[403607597,1769417638051,-1000.0,0.0004347,120]
[403607598,1769417638075,-324.36472375,0.0004347,120]
[403607599,1769417638100,-4117.0,0.0004347,30]
[403607600,1769417638125,-400.0,0.0004347,30]
[403607601,1769417638151,-400.0,0.0004347,30]
[403607602,1769417638350,-400.0,0.0004347,30]
[403607603,1769417638376,-400.0,0.0004347,30]
[403607604,1769417638401,-400.0,0.0004347,30]
[403607605,1769417638426,-400.0,0.0004347,30]
[403607606,1769417638450,-400.0,0.0004347,30]
[403607607,1769417638476,-400.0,0.0004347,30]
[403607608,1769417638503,-400.0,0.0004347,30]
[403607609,1769417638532,-400.0,0.0004347,30]
[403607610,1769417638558,-400.0,0.0004347,30]
[403607611,1769417638583,-400.0,0.0004347,30]